Cogmind - Beta 10.1 @@@ ROGUE MODE // 2020.09.26 @ 21:20:50 Player: Finestep Result: Self-destructed Performance ------------- Evolutions (6) 3000 Regions Visited (22) 4400 Robots Destroyed (484) 2420 Value Destroyed (18645) 18645 Prototype IDs (62) 1240 Alien Tech Used (0) 0 Bonus (12114) 12114 TOTAL SCORE: 41819 Bonus ------- Triggered High Security 500 High Alert Combat Kills 7088 Follower Combat Kills 3593 Network Hubs Disabled 200 Met Data Miner 300 Met Imprinter 300 Was Imprinted 300 Built Enhanced Grunts 300 A7 Reached Mainframe 300 Met R17 at Cetus 500 Friendly Fire -1267 Cogmind --------- Core Integrity 127/1150 Matter 298/300 Energy 920/920 System Corruption 25% Temperature Cool (0) Movement Treading (160) Location -4/Factory Parts ------- > --- POWER (2) -------- Cooled Fission Core Micro Fission Core > --- PROPULSION (4) --- Improved Heavy Treads Armored Huge Wheel > --- UTILITY (10) ----- Experimental Heat Sink Large Storage Unit Energy Well Triangulator Experimental Optical Array Advanced System Shield > --- WEAPON (3) ------- Faulty Long-range Phase Cannon Enhanced Gauss Cannon > --- INVENTORY (10) --- Cooled Fission Core Antimatter Reactor Light Antimatter Reactor Zionite Light DM Reactor Experimental Heat Sink Precision Matter Filter Point Defense System Axe Peak State ------------ > --- POWER ------------ Quantum Reactor Quantum Reactor > --- PROPULSION ------- Centrium Heavy Treads Centrium Heavy Treads > --- UTILITY ---------- Large Storage Unit Large Storage Unit Large Storage Unit Advanced Signal Interpreter Experimental Terrain Scanner Advanced Terrain Scan Processor Experimental Armor Integrity Analyzer Advanced Transmission Jammer Centrium Medium Armor Plating Hacking Drone Bay > --- WEAPON ----------- Heavy Plasma Cannon Improved KE Penetrator Improved KE Penetrator > --- INVENTORY -------- Micro Fission Core Micro Fission Core Micro Fission Core Centrium Heavy Treads Zionite Biocell Energy Filter Energy Filter Launcher Loader Improved Weapon Shielding Improved Medium Armor Plating Improved Medium Armor Plating Improved Medium Armor Plating Layered Medium Armor Plating Hacking Suite Long-range Tractor Beam Long-range Tractor Beam Cooled Plasma Rifle Cooled Plasma Rifle Autogun Heavy Shock Bomb Launcher [Rating: 137] Favorites ----------- Power Quantum Reactor Engine Ion Engine Power Core Micro Nuclear Core Reactor Quantum Reactor Propulsion Light Treads Treads Light Treads Leg Improved Aluminum Leg Wheel Armored Wheel Hover Unit Combat Airjet Utility Large Storage Unit Device Advanced Heat Sink Storage Large Storage Unit Processor Experimental Armor Integrity Analyzer Hackware Advanced System Shield Protection Hardened Light Armor Plating Weapon Improved KE Penetrator Energy Gun Improved EM Shotgun Energy Cannon Heavy Particle Cannon Ballistic Gun Improved KE Penetrator Ballistic Cannon Heavy Gauss Cannon Launcher Heavy Rocket Launcher Special Weapon Mining Laser Slashing Weapon Axe Piercing Weapon Spear Build | -11 -10 -10 -10 -9 -8 -7 -7 -7 -6 -6 -6 -6 -6 -6 -6 -5 -5 -5 -5 -5 -5 -4 ------- Run | Scr Mat Min Exi Min Mat Fac Low Zio Pro Fac Was Fac Low Low Dat Pro Fac Ext Cet Arc Hub Fac Slots Evolved 12 | . . . . . 4 2 . . . 2 . . . . . . 2 . . . . 2 Power 1 | . . . . . . . . . . . . . . . . . 1 . . . . . Propulsion 2 | . . . . . 1 . . . . . . . . . . . 1 . . . . . Utility 8 | . . . . . 3 2 . . . 2 . . . . . . . . . . . 1 Weapon 1 | . . . . . . . . . . . . . . . . . . . . . . 1 Parts Attached 523 | 7 12 3 . 3 84 22 5 10 8 75 5 7 9 13 1 16 36 33 25 2 28 119 Power 42 | 1 2 1 . . 6 1 1 2 . 7 . . . . . 2 3 . 3 . 1 12 Engine 20 | 1 2 1 . . 4 1 . 2 . 6 . . . . . 1 2 . . . . . Core 12 | . . . . . 2 . 1 . . 1 . . . . . 1 1 . 1 . . 5 Reactor 10 | . . . . . . . . . . . . . . . . . . . 2 . 1 7 Propulsion 83 | 3 1 . . 1 25 4 . 1 1 12 . . . 1 . . 5 9 4 . . 16 Treads 35 | 2 1 . . . 17 2 . . 1 3 . . . . . . . . 3 . . 6 Leg 17 | . . . . 1 6 . . . . 2 . . . . . . . . . . . 8 Wheel 10 | 1 . . . . 2 2 . 1 . 2 . . . . . . . . . . . 2 Hover 21 | . . . . . . . . . . 5 . . . 1 . . 5 9 1 . . . Flight . | . . . . . . . . . . . . . . . . . . . . . . . Utility 204 | 1 4 . . . 20 10 . 7 1 32 2 3 2 . . 1 21 15 7 2 16 60 Device 109 | . . . . . 7 3 . 1 1 20 1 3 1 . . . 16 6 3 1 10 36 Storage 15 | 1 3 . . . 5 . . . . 1 . . . . . . . . . . 1 4 Processor 20 | . . . . . . 1 . 3 . 6 . . . . . . 2 1 . . 1 6 Hackware 7 | . . . . . . . . . . . . . . . . . 2 1 . . . 4 Protection 53 | . 1 . . . 8 6 . 3 . 5 1 . 1 . . 1 1 7 4 1 4 10 Artifact . | . . . . . . . . . . . . . . . . . . . . . . . Weapon 194 | 2 5 2 . 2 33 7 4 . 6 24 3 4 7 12 1 13 7 9 11 . 11 31 Energy Gun 39 | . 1 . . . 10 . . . . 7 . . . 1 . 2 . 5 1 . . 12 Energy Cannon 35 | . . . . . 2 4 3 . 3 3 1 1 2 3 . 1 4 . 2 . 1 5 Ballistic Gun 55 | 2 3 2 . 1 16 2 . . . 6 2 1 1 . 1 1 2 . 4 . 6 5 Ballistic Cannon 3 | . . . . . . . . . . . . . . . . . . . . . . 3 Launcher 34 | . . . . . 4 1 1 . 3 5 . . 2 2 . 5 1 1 2 . 4 3 Special Weapon 3 | . 1 . . 1 . . . . . 1 . . . . . . . . . . . . Impact Weapon . | . . . . . . . . . . . . . . . . . . . . . . . Slashing Weapon 5 | . . . . . 1 . . . . 1 . . . . . . . . . . . 3 Piercing Weapon 20 | . . . . . . . . . . 1 . 2 2 6 . 4 . 3 2 . . . Special Melee Weapon . | . . . . . . . . . . . . . . . . . . . . . . . Unidentified Prototypes 20 | . . . . . 2 . . 3 . 6 . . . . . . 2 . 3 . 1 3 Parts Lost 114 | . 4 2 . 1 19 4 2 . 1 19 . . . 1 . 2 3 4 . . 5 47 Power 11 | . 1 1 . . 1 1 . . . 2 . . . . . . . . . . 1 4 Propulsion 24 | . 1 . . 1 6 2 . . . 6 . . . 1 . . . 2 . . . 5 Utility 44 | . . . . . 4 1 . . 1 8 . . . . . 1 2 2 . . 3 22 Weapon 35 | . 2 1 . . 8 . 2 . . 3 . . . . . 1 1 . . . 1 16 Highest Loss Streak 14 | . 2 1 . 1 3 3 2 . 1 4 . . . 1 . 2 3 2 . . 4 14 Average Slot Usage (%) 95 | . 98 99 100 100 96 99 99 99 99 98 100 100 99 100 93 94 94 99 93 87 87 82 Engine 5 | . 14 13 14 14 7 7 5 6 7 5 . . . . . . 3 . . . . . Core 2 | . . . . . . . 1 . . . 6 6 6 6 6 5 6 11 5 . . 3 Reactor 2 | . . . . . . . . . . . . . . . . . . . 5 11 11 6 Treads 10 | . 27 28 28 23 18 6 7 7 7 4 . . . . . . . . 5 11 11 7 Leg 1 | . . . . 4 6 . . . . 1 . . . . . . . . . . . 4 Wheel 3 | . . . . . . 14 15 15 15 6 . . . . . . . . . . . 1 Hover 5 | . . . . . . . . . . 6 20 20 20 20 20 20 21 22 10 . . . Device 11 | . . . . . 6 15 15 13 6 19 19 23 19 20 20 20 11 12 11 15 13 15 Storage 17 | . 19 28 28 28 24 23 23 23 23 18 13 13 13 13 13 13 11 11 11 11 11 10 Processor 9 | . . . . . . . . 1 7 15 20 20 20 20 20 20 22 23 23 23 17 9 Protection 7 | . 7 . . . 10 15 15 14 15 5 6 2 6 6 6 4 . 3 4 . 8 4 Energy Gun 2 | . 2 . . . 7 . . . . 3 . . . . . . . 7 . . . 2 Energy Cannon 3 | . . . . . . 11 14 15 14 4 . . . 1 . . 1 . 1 . . . Ballistic Gun 8 | . 24 28 28 26 9 3 . . . 4 12 9 5 6 . 2 1 . 6 11 10 4 Naked Turns . | . . . . . . . . . . . . . . . . . . . . . . . Heaviest Build 171 | 9 39 41 41 41 76 84 81 86 86 97 59 57 62 63 56 62 66 68 98 98 116 171 Greatest Support 160 | 40 40 40 40 40 64 24 24 24 24 62 58 58 58 58 58 58 76 71 160 160 160 160 Greatest Overweight (x) 49 | . . 1 1 2 5 3 3 3 3 4 1 . 1 1 . 1 1 1 1 30 . 49 Average Overweight (x) . | . . . 1 1 . 3 2 3 3 1 . . . . . . . . . 5 . . Largest Inventory Capacity 42 | 6 16 16 16 16 22 22 22 22 22 22 16 16 16 16 16 16 16 16 16 16 22 42 Average Capacity 17 | 5 10 16 16 16 19 22 22 22 22 20 16 16 16 16 16 16 16 16 16 16 16 18 Most Carried 25 | 3 15 16 16 16 22 22 22 22 22 22 16 16 16 16 15 16 16 16 16 16 18 25 Average Carried 16 | 1 7 15 15 15 18 21 20 21 21 18 16 15 15 15 15 15 15 15 15 16 15 13 Final Capacity 22 | 6 16 16 16 16 22 22 22 22 22 16 16 16 16 16 16 16 16 16 16 16 22 10 Final Carried 22 | 3 15 16 16 15 22 22 22 22 22 16 16 16 16 15 15 15 16 16 16 16 18 8 Class Distribution -------------------- 33% | Mutant 29% | Scavenger-Mutant 24% | Hauler-Mutant Dominant Class ---------------- Mutant | -10/Materials Mutant | -10/Mines Mutant | -10/Exiles Mutant | -9/Mines Scavenger-Mutant | -8/Materials Hauler-Mutant | -7/Factory Hauler-Mutant | -7/Lower Caves Hauler-Mutant | -7/Zion Hauler-Mutant | -6/Proximity Caves Scavenger-Mutant | -6/Factory Mutant | -6/Waste Mutant | -6/Factory Mutant | -6/Lower Caves Mutant | -6/Lower Caves Mutant | -6/Data Miner Mutant | -5/Proximity Caves Mutant | -5/Factory Scavenger-Mutant | -5/Extension Scavenger-Mutant | -5/Cetus Scavenger-Mutant | -5/Archives Scavenger-Mutant | -5/Hub_04(d) Scavenger-Mutant | -4/Factory Resources | -11 -10 -10 -10 -9 -8 -7 -7 -7 -6 -6 -6 -6 -6 -6 -6 -5 -5 -5 -5 -5 -5 -4 ----------- Run | Scr Mat Min Exi Min Mat Fac Low Zio Pro Fac Was Fac Low Low Dat Pro Fac Ext Cet Arc Hub Fac Matter Collected 10570 | 298 267 88 . 70 1762 539 100 68 200 1342 . 243 92 186 . 473 481 356 385 105 1167 2348 Remotely 730 | . . . . . . . . . . . . . . . . . . . . . 94 636 Salvage Created 24163 | 105 979 346 . 122 3471 992 225 . 228 3604 602 372 31 251 . 910 1245 1414 822 163 2701 5580 Parts 1004 | 11 73 18 . 7 175 47 8 . 3 134 5 10 1 8 . 25 47 49 44 10 117 212 Haulers Intercepted 23 | . 2 . . . 5 . . . . 5 . 1 . . . . 4 1 . . 4 1 Recyclers Shooed 27 | . 2 2 . 1 4 . . . . 9 . . . . . . 2 . . . . 7 Parts Field Recycled . | . . . . . . . . . . . . . . . . . . . . . . . Retrieved Matter . | . . . . . . . . . . . . . . . . . . . . . . . Parts Self-Destructed 39 | . . . . . . . 6 . 14 . . . 3 . . 16 . . . . . . Prevented 22 | . . . . . . . . . . . . . . 7 . 15 . . . . . . Kills | -11 -10 -10 -10 -9 -8 -7 -7 -7 -6 -6 -6 -6 -6 -6 -6 -5 -5 -5 -5 -5 -5 -4 ------- Run | Scr Mat Min Exi Min Mat Fac Low Zio Pro Fac Was Fac Low Low Dat Pro Fac Ext Cet Arc Hub Fac Combat Hostiles Destroyed 345 | . 21 5 . 5 62 17 6 . 9 44 2 4 2 6 . 19 10 17 11 1 30 74 Melee 12 | . . . . . . . . . . . . . . . . . 5 5 . . . 2 Guns 165 | . 19 5 . 5 48 6 . . . 19 2 2 . 1 . 1 3 5 2 1 19 27 Cannons 44 | . . . . . 1 8 3 . 3 14 . . . . . . 1 . 1 . . 13 AOE 95 | . 2 . . . 13 3 3 . 6 10 . 2 2 3 . 16 1 4 1 . 10 19 Classes Destroyed 21 | 2 7 . . . 5 1 . . 1 2 1 . . . . . . 2 . . . . Worker 26 | . 1 . . . 4 1 . . . 7 . 2 . . . . . . . . 7 4 Builder 18 | . 2 . . . . . . . . 2 . . . . . . 1 1 . . 4 8 Tunneler 5 | 3 . 1 . . . . . . . . . . . . . . . . . . . 1 Hauler 23 | . 2 . . . 5 . . . . 5 . 1 . . . . 4 1 . . 4 1 Recycler 25 | 1 1 2 . . 4 1 . . . 4 . . . . . . 2 2 . . 2 6 Minesweeper 1 | . . . . . . . . . 1 . . . . . . . . . . . . . Mechanic 2 | . . . . . . . . . . 1 . . . . . 1 . . . . . . Operator 9 | . 1 . . . 1 . . . . . . . . . . . 1 2 . 3 . 1 Watcher 23 | . 3 . . . 5 2 . . . 2 . . . . . . 1 . 2 . 3 5 Swarmer 87 | . 9 3 . 3 14 3 . . 6 6 . . 2 3 . 6 1 3 2 . 11 15 Saboteur 4 | . . . . . . . . . . 1 . . . . . . . . . . . 3 Grunt 164 | . 12 2 . 2 29 8 4 . 2 28 . 4 . 2 . 10 6 7 1 . 10 37 Brawler 15 | . . . . . 4 2 . . 1 1 . . . . . . 1 1 . . 2 3 Duelist 9 | . . . . . 2 1 . . . 1 . . . 1 . 2 . . . . 1 1 Protector 3 | . . . . . 1 . . . . 1 . . . . . . . . . . . 1 Sentry 26 | . . . . . 9 2 1 . . 2 . . . . . 1 1 3 . 1 4 2 Hunter 9 | . . . . . 3 . 1 . . . . . . . . . . 1 . . . 4 Programmer 16 | . . . . . . 1 . . . 4 . . . . . . 1 . . . 2 8 Behemoth 2 | . . . . . . . . . . . . . . . . . . 2 . . . . Compactor 2 | . . . . . . . . . . . 2 . . . . . . . . . . . Cetus Guard 8 | . . . . . . . . . . . . . . . . . . . 8 . . . Enhanced Grunt 1 | . . . . . . . . . . . . . . . . . . . . . 1 . Z-Courier 1 | . . . . . . . . . . . . 1 . . . . . . . . . . Decomposer 1 | . . . . . . . . . . . . . 1 . . . . . . . . . Savage 1 | . . . . . . . . . . . . . . . . . . 1 . . . . Fireman 3 | . . . . . . . . . . . . . . . . . . 3 . . . . Best Kill Streak 16 | 2 8 3 . 3 5 4 5 . 3 12 2 4 2 3 . 14 3 7 5 2 9 16 Combat Bots Only 13 | . 5 3 . 3 4 3 5 . 3 11 2 4 2 3 . 13 2 7 4 1 7 13 Max Kills in Single Turn 5 | 1 2 1 . 1 2 3 1 . 2 3 1 2 1 2 . 5 2 4 1 1 3 4 Gunslinging 1 | . . . . . . . . . . 1 . . . . . . . . . . 1 . Exploded 5 | . 2 . . . 2 2 1 . 2 3 . 2 1 2 . 5 1 2 1 . 3 4 Melee 1 | . . . . . . . . . . . . . . . . . 1 1 . . . 1 Uniques/NPCs Destroyed . | . . . . . . . . . . . . . . . . . . . . . . . Combat | -11 -10 -10 -10 -9 -8 -7 -7 -7 -6 -6 -6 -6 -6 -6 -6 -5 -5 -5 -5 -5 -5 -4 -------- Run | Scr Mat Min Exi Min Mat Fac Low Zio Pro Fac Was Fac Low Low Dat Pro Fac Ext Cet Arc Hub Fac Damage Taken 25022 | . 869 286 . 188 3808 1216 223 . 442 3150 . 156 44 178 . 615 821 685 272 145 3460 8464 Core 2988 | . 148 52 . 29 392 46 . . 89 347 . . 16 28 . 46 201 175 19 28 349 1023 Absorbed by Shields 809 | . . . . . . . . . . . . . . . . . . . 217 . . 592 Reduced by Siege Mode 349 | . . . . . . . . . . . . . . . . . . . . . 154 195 Core Remaining (%) 47 | 100 . . . 8 28 . . . 80 . . . . . . 48 . . . . 22 . Volleys Fired 1221 | 14 110 28 . 12 228 70 14 . 27 177 19 7 8 23 . 24 30 37 29 9 124 231 Largest 3 | 2 2 2 . 2 2 2 2 . 2 2 2 2 1 2 . 2 1 2 2 2 2 3 Hottest 211 | 40 100 43 . 100 150 155 155 . 155 165 90 90 90 95 . 95 90 96 70 70 90 211 Shots Fired 2187 | 28 215 54 . 22 439 133 23 . 46 335 37 13 7 27 . 24 30 72 36 18 218 410 Gun 1674 | 28 213 54 . 20 428 68 . . . 216 35 12 1 8 . 2 19 70 17 18 198 267 Cannon 380 | . . . . . 2 62 18 . 38 105 2 1 4 11 . 3 9 . 11 . 4 110 Launcher 128 | . . . . . 9 3 5 . 8 13 . . 2 8 . 19 2 2 8 . 16 33 Special 5 | . 2 . . 2 . . . . . 1 . . . . . . . . . . . . Kinetic 1351 | 28 167 54 . 20 321 68 . . . 166 35 12 1 5 . 1 19 . 14 18 198 224 Thermal 508 | . 2 . . 2 2 62 18 . 38 145 2 1 4 11 . 3 9 70 3 . 4 132 Explosive 47 | . . . . . 9 3 5 . 8 6 . . 2 4 . 6 2 2 . . . . Electromagnetic 280 | . 46 . . . 107 . . . . 17 . . . 7 . 14 . . 19 . 16 54 Robot Hit Streak 46 | 7 14 17 . 8 21 11 13 . 10 20 9 11 4 3 . 3 7 6 3 4 46 32 Robot Miss Streak 6 | 2 4 3 . 1 6 3 1 . 3 3 1 1 . 1 . 1 1 4 2 1 4 4 Penetration Max 1 | . . . . . . . . . . 1 . . . . . . 1 . 1 1 1 1 Secondary Targets 21 | . 2 . . 1 4 . . . . 2 . . . . . . . 1 1 . 5 5 Max Gunslinging Chain 1 | . 1 . . 1 1 . . . . 1 . . . . . . . 1 1 . 1 1 Shots Hit Robots 1507 | 18 134 41 . 17 310 80 14 . 26 243 31 13 1 8 . 9 49 54 12 12 145 290 Core Hits 885 | 8 60 15 . 7 169 41 14 . 20 134 8 11 5 10 . 47 29 37 16 7 79 168 Critical Hits 108 | 1 1 1 . . 5 . 1 . . 8 . . . . . 1 4 . 1 7 41 37 Critical Kills 39 | . . 1 . . 1 . 1 . . 4 . . . . . 1 1 . . 3 17 10 Critical Parts Destroyed 69 | 1 1 . . . 4 . . . . 4 . . . . . . 3 . 1 4 24 27 Melee Attacks 159 | . . . . . 1 . . . . 4 . 15 6 13 . 6 80 26 1 . . 7 Impact . | . . . . . . . . . . . . . . . . . . . . . . . Slashing 9 | . . . . . 1 . . . . 1 . . . . . . . . . . . 7 Piercing 150 | . . . . . . . . . . 3 . 15 6 13 . 6 80 26 1 . . . Sneak Attacks 27 | . . . . . . . . . . . . 4 . . . . 10 9 . . . 4 Combat Hostiles 3 | . . . . . . . . . . . . . . . . . . 3 . . . . Follow-up Attacks . | . . . . . . . . . . . . . . . . . . . . . . . Damage Inflicted 52330 | 119 1303 361 . 206 5853 1944 684 . 1379 8240 625 1068 140 857 . 3543 2390 2620 1115 347 5496 14040 Guns 22906 | 119 1229 361 . 206 4757 716 . . . 3880 625 196 23 68 . 28 406 995 166 347 3980 4804 Cannons 7522 | . . . . . 25 1055 299 . 606 2213 . . . . . . 128 . 171 . . 3025 Explosions 17592 | . 74 . . . 1063 173 385 . 773 2147 . 477 117 578 . 3048 220 494 778 . 1496 5769 Melee 4260 | . . . . . . . . . . . . 395 . 211 . 467 1636 1131 . . . 420 Ramming 50 | . . . . . 8 . . . . . . . . . . . . . . . 20 22 Kinetic 19083 | 119 799 361 . 206 3253 716 . . . 3061 625 196 23 22 . . 406 . 136 347 3980 4833 Thermal 10699 | . 74 . . . 324 1055 299 . 606 2838 . 477 . . . 868 128 995 30 . 245 2760 Explosive 7139 | . . . . . 764 173 385 . 773 1273 . . 117 307 . 1226 220 494 . . . 1407 Electromagnetic 11099 | . 430 . . . 1504 . . . . 1068 . . . 317 . 982 . . 949 . 1251 4598 Impact . | . . . . . . . . . . . . . . . . . . . . . . . Slashing 420 | . . . . . . . . . . . . . . . . . . . . . . 420 Piercing 3840 | . . . . . . . . . . . . 395 . 211 . 467 1636 1131 . . . . Highest Corruption 28 | . 1 1 1 1 5 . . . . 5 25 27 27 27 27 28 2 3 4 4 3 25 Average Corruption 7 | . 1 1 1 1 5 . . . . 4 17 25 27 27 27 27 1 2 3 2 1 13 Corruption Purged 4 | . . . . . . . . . . . . . . . . . . . . 4 . . Effects 420 | . 4 1 4 . 5 . . . . 37 19 34 38 46 3 29 3 21 19 9 13 135 Message Errors 71 | . 1 . 2 . 1 . . . . 11 . 5 6 10 . 1 1 11 3 2 3 14 Matter Fused 52 | . . . . . 1 . . . . 6 4 . 6 2 . 5 . 2 5 2 . 19 Heat Flow Errors 34 | . . . . . 1 . . . . 4 1 2 5 2 1 2 2 3 2 . 1 8 Energy Discharges 22 | . . . . . . . . . . . . 1 4 1 . 1 . . 3 2 2 8 Parts Rejected 1 | . . . . . . . . . . . . . . . . . . . . . . 1 Data Loss (minor) 43 | . 1 . 2 . 1 . . . . 6 2 4 2 4 1 4 . 1 4 2 1 8 Data Loss (major) 7 | . . . . . 1 . . . . . 1 1 . 1 . 1 . . . . . 2 Misfires 8 | . . . . . . . . . . 2 1 1 . 1 . 1 . . . . . 2 Alerts 5 | . . . . . . . . . . . . 1 . 2 . 1 . . . . . 1 Misdirections 55 | . . . . . . . . . . . 4 8 12 15 1 7 . . . . . 8 Targeting Errors 107 | . 2 . . . . . . . . 7 6 11 2 8 . 4 . 4 2 1 5 55 Weapon Failures 15 | . . 1 . . . . . . . 1 . . 1 . . 2 . . . . 1 9 Overload Shots 5 | . . . . . . . . . . . . . . . . . . 2 . . . 3 Overflow Damage 1735 | . . . . . 17 22 . . 101 91 . 194 . 54 . 219 224 172 . . 30 611 Projectiles 184 | . . . . . . 22 . . 61 33 . . . . . . . . . . . 68 Explosions 732 | . . . . . 17 . . . 40 58 . 73 . 54 . 71 . 19 . . 30 370 Melee 819 | . . . . . . . . . . . . 121 . . . 148 224 153 . . . 173 Knockbacks 16 | . . . . . . . . . . . . . . . . . . . . . . 16 Impact 1 | . . . . . . . . . . . . . . . . . . . . . . 1 Kinetic 15 | . . . . . . . . . . . . . . . . . . . . . . 15 Secondary . | . . . . . . . . . . . . . . . . . . . . . . . Self-Inflicted Damage 806 | . . . . . 117 . . . . 66 . 49 . 15 . 100 . 28 . . 199 232 Shots 27 | . . . . . 3 . . . . 2 . 1 . 2 . 4 . 1 . . 5 9 Rammed 3 | . . . . . 1 . . . . . . . . . . . . . . . 1 1 Targets Rammed 4 | . . . . . 1 . . . . . . . . . . . . . . . 1 2 Kicked . | . . . . . . . . . . . . . . . . . . . . . . . Crushed 1 | . . . . . . . . . . . . . . . . . . . . . . 1 Highest Temperature 449 | . 134 18 . 64 183 254 186 . 175 354 182 255 225 252 151 257 338 254 219 . 219 449 Average Temperature 75 | . 41 6 . 13 42 81 75 . 59 109 58 90 84 30 77 107 79 106 91 . 54 99 Received Heat Transfer 6171 | . 336 120 . 63 1440 441 72 . 96 1146 . 30 . 36 . 93 156 147 . 15 840 1140 Effects 10 | . . . . . . . . . . 3 . . 1 . . . . . . . . 6 Shutdowns 1 | . . . . . . . . . . . . . . . . . . . . . . 1 Energy Bleed 2 | . . . . . . . . . . 1 . . . . . . . . . . . 1 Interference 3 | . . . . . . . . . . 2 . . 1 . . . . . . . . . Short Circuit 1 | . . . . . . . . . . . . . . . . . . . . . . 1 Damage (minor) 1 | . . . . . . . . . . . . . . . . . . . . . . 1 Damage (major) 2 | . . . . . . . . . . . . . . . . . . . . . . 2 Siege Activations 9 | . . . . . . . . . . . . . . . . . . . . . 3 6 Total Turns 248 | . . . . . . . . . . . . . . . . . . . . . 87 161 Longest Duration 55 | . . . . . . . . . . . . . . . . . . . . . 55 49 Robots Corrupted 27 | . 1 . . . . . . . . 1 . . . 2 . 2 . . 7 . 1 13 Combat Hostiles 26 | . . . . . . . . . . 1 . . . 2 . 2 . . 7 . 1 13 Parts Fried 84 | . 2 . . . 9 . . . . 8 . . . 4 . 4 . . 11 . 7 39 Impact Corruptions . | . . . . . . . . . . . . . . . . . . . . . . . Robots Melted 4 | . . . . . . . . . . . . . . . . . . 3 . . . 1 Combat Hostiles 3 | . . . . . . . . . . . . . . . . . . 3 . . . . Parts Melted 32 | . . . . . 1 6 1 . . 1 . . . . . . 2 8 . . 2 11 Heat Transferred 15976 | . 100 . . . 326 1679 470 . 1031 4193 . 400 . . . 700 200 2100 50 . 200 4527 Parts Sabotaged 2 | . . . . . . . . . . . . . . . . . . . . . . 2 Parts Stolen . | . . . . . . . . . . . . . . . . . . . . . . . Parts Stripped . | . . . . . . . . . . . . . . . . . . . . . . . Power Chain Reactions 22 | . 1 . . . 5 . . . . 3 . . . . . 4 . . . . 3 6 Missiles Intercepted . | . . . . . . . . . . . . . . . . . . . . . . . Alert | -11 -10 -10 -10 -9 -8 -7 -7 -7 -6 -6 -6 -6 -6 -6 -6 -5 -5 -5 -5 -5 -5 -4 ------- Run | Scr Mat Min Exi Min Mat Fac Low Zio Pro Fac Was Fac Low Low Dat Pro Fac Ext Cet Arc Hub Fac Peak Influence 2658 | 20 354 187 . 101 1148 698 . . . 1789 630 823 . . . . 1653 1511 1573 824 1513 2658 Initial 809 | . 13 116 . . 39 522 . . . 101 598 441 . . . . 436 809 748 569 175 741 Average 721 | 10 221 84 . 88 456 586 . . . 1003 624 561 . . . . 878 1179 1143 710 687 1274 Maximum Alert Level 5 | . 1 . . . 4 2 . . . 5 2 3 . . . . 5 4 4 3 4 5 Low Security (%) 16 | 100 45 100 . 100 25 . . . . 4 . . . . . . . . . . 3 . Level 1 13 | . 54 . . . 29 . . . . 2 . . . . . . 12 . . . 15 . Level 2 23 | . . . . . 21 100 . . . 6 100 89 . . . . 39 . . 56 32 . Level 3 24 | . . . . . 18 . . . . 49 . 10 . . . . 11 31 50 43 32 39 Level 4 19 | . . . . . 5 . . . . 25 . . . . . . 32 68 49 . 15 46 Level 5 1 | . . . . . . . . . . 11 . . . . . . 3 . . . . 2 High Security 1 | . . . . . . . . . . . . . . . . . . . . . . 11 Max Security . | . . . . . . . . . . . . . . . . . . . . . . . Squads Dispatched 87 | . 4 . . . 12 5 . . . 15 . 3 . . . 1 12 4 . . 6 25 Investigation 13 | . 2 . . . 4 . . . . 3 . 2 . . . . . . . . 1 1 Extermination 11 | . . . . . . 1 . . . 3 . . . . . . 1 . . . 2 4 Reinforcement 24 | . 2 . . . 3 . . . . 5 . 1 . . . . 4 3 . . 2 4 Assault 28 | . . . . . 2 1 . . . 2 . . . . . 1 4 1 . . 1 16 Garrison 11 | . . . . . 3 3 . . . 2 . . . . . . 3 . . . . . Intercept . | . . . . . . . . . . . . . . . . . . . . . . . Construction Impeded 9 | . . . . . 1 . . . . 2 . . . . . . . 1 . . 1 4 Haulers Reinforced 5 | . . . . . . . . . . 3 . . . . . . 2 . . . . . Stealth | -11 -10 -10 -10 -9 -8 -7 -7 -7 -6 -6 -6 -6 -6 -6 -6 -5 -5 -5 -5 -5 -5 -4 --------- Run | Scr Mat Min Exi Min Mat Fac Low Zio Pro Fac Was Fac Low Low Dat Pro Fac Ext Cet Arc Hub Fac Distress Signals 18 | . 2 . . . 5 . . . . . . . . . . . 1 1 2 . 2 5 Communications Jammed 33 | . . . . . . . . . . . . . . . . . . 12 . . 11 10 Distress Signals 30 | . . . . . . . . . . . . . . . . . . 12 . . 9 9 Times Spotted 627 | . 36 5 . 5 90 24 6 . 18 74 8 10 2 6 . 26 53 41 32 7 52 132 Peak Tracking Total 15 | . 7 3 . 3 6 4 5 . 5 8 6 5 2 3 . 12 10 6 5 2 6 15 Tactical Retreats 43 | . 2 . . . 7 2 . . . 4 1 1 . 1 . 2 10 2 . . 3 8 Traps | -11 -10 -10 -10 -9 -8 -7 -7 -7 -6 -6 -6 -6 -6 -6 -6 -5 -5 -5 -5 -5 -5 -4 ------- Run | Scr Mat Min Exi Min Mat Fac Low Zio Pro Fac Was Fac Low Low Dat Pro Fac Ext Cet Arc Hub Fac Traps Triggered 17 | . 1 . . . . 2 . . . 2 . 1 . . . . . 2 . . 8 1 Indirectly 8 | . . . . . . . . . . . . . . . . . . . . . 8 . Trap Hack Attempts . | . . . . . . . . . . . . . . . . . . . . . . . Triggered . | . . . . . . . . . . . . . . . . . . . . . . . Disarmed . | . . . . . . . . . . . . . . . . . . . . . . . Reprogrammed . | . . . . . . . . . . . . . . . . . . . . . . . Reused 4 | . . . . . 1 . . . . . . . . . . . . 3 . . . . Traps Extracted . | . . . . . . . . . . . . . . . . . . . . . . . Installed 13 | . . . . . 3 . . . . . . . . . . . . 10 . . . . Triggered 7 | . . . . . 2 . 1 . . . . . . . . . . 3 . . 1 . Exploded 1 | . . . . . 1 . . . . . . . . . . . . . . . . . Machines | -11 -10 -10 -10 -9 -8 -7 -7 -7 -6 -6 -6 -6 -6 -6 -6 -5 -5 -5 -5 -5 -5 -4 ---------- Run | Scr Mat Min Exi Min Mat Fac Low Zio Pro Fac Was Fac Low Low Dat Pro Fac Ext Cet Arc Hub Fac Machines Disabled 87 | . . . . . 5 . 1 . . 12 . 4 . . . . 7 4 3 2 20 29 Max in Single Turn 9 | . . . . . 1 . 1 . . 2 . 4 . . . . 1 2 1 1 9 4 Garrison Access 6 | . . . . . 1 . . . . 2 . 1 . . . . 1 . . . . 1 Network Hub 1 | . . . . . . . . . . . . . . . . . . . . . 1 . Machines Sabotaged . | . . . . . . . . . . . . . . . . . . . . . . . Garrisons Compromised . | . . . . . . . . . . . . . . . . . . . . . . . Overloaded Fab Kills . | . . . . . . . . . . . . . . . . . . . . . . . Fab Network Shutdowns 1 | . . . . . . . . . . . . . . . . . 1 . . . . . Hacking | -11 -10 -10 -10 -9 -8 -7 -7 -7 -6 -6 -6 -6 -6 -6 -6 -5 -5 -5 -5 -5 -5 -4 --------- Run | Scr Mat Min Exi Min Mat Fac Low Zio Pro Fac Was Fac Low Low Dat Pro Fac Ext Cet Arc Hub Fac Machines Accessed 47 | . 8 1 1 . 12 5 1 . 1 4 . 2 . . 3 . 6 . . . . 3 Terminals 18 | . 6 1 . . 7 3 . . 1 . . . . . . . . . . . . . Fabricators 7 | . . . . . . 1 . . . 1 . . . . . . 3 . . . . 2 Repair Stations 3 | . . . . . 2 1 . . . . . . . . . . . . . . . . Recycling Units 8 | . 2 . . . 2 . . . . 1 . 1 . . . . 2 . . . . . Scanalyzers . | . . . . . . . . . . . . . . . . . . . . . . . Garrison Access 6 | . . . . . 1 . . . . 2 . 1 . . . . 1 . . . . 1 Total Hacks 150 | . 20 4 4 . 32 11 1 . 2 7 . 6 . . 24 . 15 . . . . 24 Successful 98 | . 14 3 4 . 18 5 1 . 1 5 . 6 . . 24 . 8 . . . . 9 Failed 50 | . 5 . . . 14 6 . . 1 2 . . . . . . 7 . . . . 15 Catastrophic 9 | . 1 . . . 5 1 . . . . . . . . . . . . . . . 2 Database Lockouts 2 | . 1 1 . . . . . . . . . . . . . . . . . . . . Manual 192 | . 8 4 . . 17 4 . . 1 10 . 11 . . . . 29 50 18 . 21 19 Terminals 45 | . 16 4 . . 17 6 . . 2 . . . . . . . . . . . . . Fabricators 29 | . . . . . . 1 . . . 1 . . . . . . 6 . . . . 21 Repair Stations 13 | . . . . . 9 4 . . . . . . . . . . . . . . . . Recycling Units 19 | . 4 . . . 4 . . . . 2 . 5 . . . . 4 . . . . . Scanalyzers . | . . . . . . . . . . . . . . . . . . . . . . . Garrison Access 15 | . . . . . 2 . . . . 4 . 1 . . . . 5 . . . . 3 Terminal Hacks 44 | . 6 3 4 . 4 1 1 . 1 . . . . . 24 . . . . . . . Record 14 | . . 2 4 . . . 1 . 1 . . . . . 6 . . . . . . . Part Schematic 9 | . . . . . . . . . . . . . . . 9 . . . . . . . Robot Schematic 6 | . . . . . . . . . . . . . . . 6 . . . . . . . Robot Analysis 2 | . 1 1 . . . . . . . . . . . . . . . . . . . . Prototype ID Bank 4 | . 1 . . . . . . . . . . . . . 3 . . . . . . . Branch Access Points 1 | . . . . . 1 . . . . . . . . . . . . . . . . . Unreport Threat 1 | . . . . . 1 . . . . . . . . . . . . . . . . . Locate Traps 3 | . 1 . . . 2 . . . . . . . . . . . . . . . . . Hauler Manifests 3 | . 2 . . . . 1 . . . . . . . . . . . . . . . . Zone Layout 1 | . 1 . . . . . . . . . . . . . . . . . . . . . Fabricator Hacks 10 | . . . . . . 1 . . . . . . . . . . 4 . . . . 5 Network Status 1 | . . . . . . 1 . . . . . . . . . . . . . . . . Load Schematic 4 | . . . . . . . . . . . . . . . . . 2 . . . . 2 Build 5 | . . . . . . . . . . . . . . . . . 2 . . . . 3 Repair Station Hacks 10 | . . . . . 8 2 . . . . . . . . . . . . . . . . Scan Component 5 | . . . . . 4 1 . . . . . . . . . . . . . . . . Repair 5 | . . . . . 4 1 . . . . . . . . . . . . . . . . Recycling Unit Hacks 9 | . 2 . . . 1 . . . . 1 . 5 . . . . . . . . . . Recycle Component 1 | . . . . . . . . . . . . 1 . . . . . . . . . . Process 2 | . . . . . . . . . . . . 2 . . . . . . . . . . Retrieve Matter 2 | . . . . . . . . . . . . 2 . . . . . . . . . . Retrieve Components 4 | . 2 . . . 1 . . . . 1 . . . . . . . . . . . . Scanalyzer . | . . . . . . . . . . . . . . . . . . . . . . . Garrison Access Hacks 1 | . . . . . . . . . . . . . . . . . 1 . . . . . Seal Access 1 | . . . . . . . . . . . . . . . . . 1 . . . . . Unauthorized Hacks 24 | . 6 . . . 5 1 . . . 4 . 1 . . . . 3 . . . . 4 Terminals 7 | . 4 . . . 2 1 . . . . . . . . . . . . . . . . Track 1 | . 1 . . . . . . . . . . . . . . . . . . . . . Botnet 6 | . 3 . . . 2 1 . . . . . . . . . . . . . . . . Fabricators 4 | . . . . . . . . . . 1 . . . . . . . . . . . 3 Report 1 | . . . . . . . . . . . . . . . . . . . . . . 1 Prioritize 1 | . . . . . . . . . . . . . . . . . . . . . . 1 Haulers 2 | . . . . . . . . . . 1 . . . . . . . . . . . 1 Repair Stations . | . . . . . . . . . . . . . . . . . . . . . . . Recycling Units 6 | . 2 . . . 3 . . . . 1 . . . . . . . . . . . . Reject 1 | . . . . . 1 . . . . . . . . . . . . . . . . . Tunnel 5 | . 2 . . . 2 . . . . 1 . . . . . . . . . . . . Scanalyzers . | . . . . . . . . . . . . . . . . . . . . . . . Garrison Access 7 | . . . . . . . . . . 2 . 1 . . . . 3 . . . . 1 Reprogram 3 | . . . . . . . . . . . . . . . . . 3 . . . . . Jam 4 | . . . . . . . . . . 2 . 1 . . . . . . . . . 1 Data Cores Recovered . | . . . . . . . . . . . . . . . . . . . . . . . Used . | . . . . . . . . . . . . . . . . . . . . . . . Hacking Detections 36 | . 7 1 . . 11 4 . . 1 4 . 1 . . . . 5 . . . . 2 Full Trace Events 3 | . . . . . 2 . . . . . . 1 . . . . . . . . . . Feedback Events . | . . . . . . . . . . . . . . . . . . . . . . . Feedback Blocked . | . . . . . . . . . . . . . . . . . . . . . . . Robot Schematics Acquired 20 | . . . . . . . . . . . . . . . 6 . . 11 3 . . . Robots Built . | . . . . . . . . . . . . . . . . . . . . . . . Matter . | . . . . . . . . . . . . . . . . . . . . . . . Time . | . . . . . . . . . . . . . . . . . . . . . . . Total Robot Build Rating . | . . . . . . . . . . . . . . . . . . . . . . . Part Schematics Acquired 118 | . . . . . . . . . . . . 16 . . 9 . 23 32 9 . 29 . Parts Built 2 | . . . . . . . . . . . . . . . . . 1 . . . . 1 Matter 921 | . . . . . . . . . . . . . . . . . 285 . . . . 636 Time 301 | . . . . . . . . . . . . . . . . . 76 . . . . 225 Total Part Build Rating 11 | . . . . . . . . . . . . . . . . . 5 . . . . 6 Parts Repaired 5 | . . . . . 4 1 . . . . . . . . . . . . . . . . Time 179 | . . . . . 141 38 . . . . . . . . . . . . . . . . Parts Recycled 1 | . . . . . . . . . . . . 1 . . . . . . . . . . Recycled Matter 166 | . . . . . . . . . . . . 166 . . . . . . . . . . Retrieved Matter 166 | . . . . . . . . . . . . 166 . . . . . . . . . . Retrieved Components 30 | . 18 . . . 10 . . . . 2 . . . . . . . . . . . . Parts Scanalyzed . | . . . . . . . . . . . . . . . . . . . . . . . Part Schematics Acquired . | . . . . . . . . . . . . . . . . . . . . . . . Parts Damaged . | . . . . . . . . . . . . . . . . . . . . . . . Bothacking | -11 -10 -10 -10 -9 -8 -7 -7 -7 -6 -6 -6 -6 -6 -6 -6 -5 -5 -5 -5 -5 -5 -4 ------------ Run | Scr Mat Min Exi Min Mat Fac Low Zio Pro Fac Was Fac Low Low Dat Pro Fac Ext Cet Arc Hub Fac Used RIF Installer . | . . . . . . . . . . . . . . . . . . . . . . . Robots Hacked 1 | . . . . . . . . . . 1 . . . . . . . . . . . . Non-combat 1 | . . . . . . . . . . 1 . . . . . . . . . . . . Combat . | . . . . . . . . . . . . . . . . . . . . . . . Robot Hacks Applied 1 | . . . . . . . . . . 1 . . . . . . . . . . . . find_chute 1 | . . . . . . . . . . 1 . . . . . . . . . . . . Relay Couplers Released 5 | . . . . . 2 . . . . . . . . . . . 3 . . . . . Machine Destruction 2 | . . . . . 2 . . . . . . . . . . . . . . . . . Programmers 3 | . . . . . . . . . . . . . . . . . 3 . . . . . Robots Rewired 7 | . . . . 1 . . 1 . . . . . . . . 2 . 3 . . . . Allies Hacked . | . . . . . . . . . . . . . . . . . . . . . . . Hacks Repelled . | . . . . . . . . . . . . . . . . . . . . . . . Allies | -11 -10 -10 -10 -9 -8 -7 -7 -7 -6 -6 -6 -6 -6 -6 -6 -5 -5 -5 -5 -5 -5 -4 -------- Run | Scr Mat Min Exi Min Mat Fac Low Zio Pro Fac Was Fac Low Low Dat Pro Fac Ext Cet Arc Hub Fac Total Allies 62 | . . . . 3 . . 1 4 . 4 . 1 . . . 3 11 24 5 . . 6 Largest Group 15 | . . . . 3 . . 1 5 5 4 . . . . . 3 9 15 6 6 5 3 Highest-Rated Group 626 | . . . . 40 . . 20 169 169 237 . . . . . 152 507 425 626 610 470 288 Highest-Rated Ally 156 | . . . . 16 . . 20 39 39 70 . . . . . 94 105 156 156 140 94 96 Zionite Dispatches 15 | . . . . . . . . . . 2 . 1 . . . . 5 3 . . . 4 Light 3 | . . . . . . . . . . 1 . . . . . . 1 . . . . 1 Fire 2 | . . . . . . . . . . . . . . . . . . 2 . . . . Hacker 1 | . . . . . . . . . . . . . . . . . 1 . . . . . Hero 1 | . . . . . . . . . . . . . . . . . 1 . . . . . Kinetic Resupply 1 | . . . . . . . . . . . . . . . . . 1 . . . . . Trap Resupply 1 | . . . . . . . . . . . . . . . . . . 1 . . . . Infowar Resupply 3 | . . . . . . . . . . . . 1 . . . . . . . . . 2 Hacking Resupply 2 | . . . . . . . . . . . . . . . . . 1 . . . . 1 Hover Resupply 1 | . . . . . . . . . . 1 . . . . . . . . . . . . Total Orders 52 | . . . . . . . . . . 1 . 5 3 . . . 22 5 3 . 7 6 STAY 7 | . . . . . . . . . . . . . 1 . . . 3 . 1 . 2 . ROAM 1 | . . . . . . . . . . . . . . . . . 1 . . . . . FOLLOW 6 | . . . . . . . . . . . . . . . . . 2 1 1 . 1 1 DROP 7 | . . . . . . . . . . 1 . 1 . . . . 2 . . . . 3 EXPLORE 14 | . . . . . . . . . . . . 2 2 . . . 10 . . . . . RETURN 17 | . . . . . . . . . . . . 2 . . . . 4 4 1 . 4 2 Ally Attacks 585 | . . . . 8 . . . . 19 99 . . . . . 16 104 131 77 32 49 50 Total Damage 16676 | . . . . 88 . . . . 510 2219 . . . . . 512 3127 2903 2586 1194 1754 1783 Kills 119 | . . . . 1 . . . . 8 17 . . . . . 7 20 20 20 3 13 10 Allies Corrupted 2 | . . . . . . . . . . . . . . . . . 1 . . . . 1 Allies Melted . | . . . . . . . . . . . . . . . . . . . . . . . Intel | -11 -10 -10 -10 -9 -8 -7 -7 -7 -6 -6 -6 -6 -6 -6 -6 -5 -5 -5 -5 -5 -5 -4 ------- Run | Scr Mat Min Exi Min Mat Fac Low Zio Pro Fac Was Fac Low Low Dat Pro Fac Ext Cet Arc Hub Fac Robot Analysis Total 2 | . 1 1 . . . . . . . . . . . . . . . . . . . . Derelict Logs Recovered 9 | . . 1 . . . . 1 1 1 . . . 2 2 . 1 . . . . . . Drone Launches 33 | . . . . . . . . . . . . 6 2 . . . 13 5 1 . 4 2 Drone Recoveries 28 | . . . . . . . . . . . . 4 . . . . 12 5 1 . 4 2 Decoded 0b10 Intel 1 | . . . . . . . . . . . . . . . . . . . . . . 1 Emergency Access 1 | . . . . . . . . . . . . . . . . . . . . . . 1 Zionite Intel Received 22 | . . . . . . . . . . . . 1 . . . . 3 10 3 . 5 . Guard Positions 1 | . . . . . . . . . . . . . . . . . . 1 . . . . Component Stockpiles 2 | . . . . . . . . . . . . . . . . . . 1 . . 1 . Prototype Stockpiles 1 | . . . . . . . . . . . . . . . . . . 1 . . . . Component Schematics 5 | . . . . . . . . . . . . 1 . . . . 1 1 . . 2 . Prototype Schematics 4 | . . . . . . . . . . . . . . . . . 1 2 1 . . . Unaware Schematics 4 | . . . . . . . . . . . . . . . . . . 3 1 . . . Unaware Analyses 2 | . . . . . . . . . . . . . . . . . 1 1 . . . . Trap Installations 1 | . . . . . . . . . . . . . . . . . . . . . 1 . Active Terminals 1 | . . . . . . . . . . . . . . . . . . . . . 1 . Depthwide Sectors/0 1 | . . . . . . . . . . . . . . . . . . . 1 . . . Exploration | -11 -10 -10 -10 -9 -8 -7 -7 -7 -6 -6 -6 -6 -6 -6 -6 -5 -5 -5 -5 -5 -5 -4 ------------- Run | Scr Mat Min Exi Min Mat Fac Low Zio Pro Fac Was Fac Low Low Dat Pro Fac Ext Cet Arc Hub Fac Turns Passed 21682 | 210 1447 698 542 258 3397 1055 486 1378 820 1686 179 316 467 476 59 356 1404 1001 851 836 1700 2060 Spaces Moved 13587 | 99 690 371 301 111 1378 618 364 1084 577 1020 152 350 613 445 88 337 1667 1048 722 110 716 726 Core 61 | 1 . . . . . . . . . . . . . . . . . . . 19 . 41 Treads 4165 | 94 690 371 301 111 1049 7 . . . 81 . . . . . . . . 257 91 716 397 Legs 579 | . . . . . 289 . . . . 83 . . . . . . . . . . . 207 Wheels 3036 | 4 . . . . 40 611 364 1084 577 275 . . . . . . . . . . . 81 Hover 5746 | . . . . . . . . . . 581 152 350 613 445 88 337 1667 1048 465 . . . Flight . | . . . . . . . . . . . . . . . . . . . . . . . Fastest Speed 48 | 50 160 160 180 180 110 120 110 120 120 65 65 65 65 65 65 65 48 48 53 160 160 50 Average Speed 111 | 156 160 163 180 187 167 120 119 120 120 101 66 65 65 68 65 68 53 49 92 400 160 145 Slowest Speed 2500 | 160 160 180 180 200 240 205 120 120 120 240 128 65 128 128 65 128 131 121 160 1550 160 2500 Overloaded Moves . | . . . . . . . . . . . . . . . . . . . . . . . Propulsion Burnouts . | . . . . . . . . . . . . . . . . . . . . . . . Robots Hopped . | . . . . . . . . . . . . . . . . . . . . . . . Cave-ins Triggered . | . . . . . . . . . . . . . . . . . . . . . . . Exploration Rate (%) 58 | 6 86 70 62 36 93 12 53 89 71 25 77 17 84 69 68 51 45 85 88 86 57 24 Regions Visited 22 Branch Regions 14 Pre-discovered Areas 18 | . 2 . 1 . 2 . 1 1 . 1 . . . . 1 . . . 9 . . . Known Exits Taken 10 | . . . . . . 1 . . . . . 1 1 1 . 1 1 1 1 1 1 . Unknown Exits Taken 10 | 1 1 1 1 1 1 . 1 1 1 . . . . . 1 . . . . . . . Scrap Searched 10 | . . . . . . . 2 3 1 . . . 1 2 . 1 . . . . . . Spaces Dug 221 | . 1 . . 2 9 9 7 . 18 18 1 6 23 29 . 12 31 25 1 . 16 13 Terrain Destroyed 1033 | . 4 . . 2 67 27 21 . 54 114 4 42 44 79 . 92 57 36 3 7 239 141 Melee 58 | . . . . . 1 . . . . 4 . 6 4 6 . . 29 5 1 . . 2 Projectile 174 | . 2 . . 2 . 13 . . . 13 4 . 4 11 . 4 5 2 2 7 60 45 AOE 801 | . 2 . . . 66 14 21 . 54 97 . 36 36 62 . 88 23 29 . . 179 94 Terrain Rammed . | . . . . . . . . . . . . . . . . . . . . . . . Walls Destroyed . | . . . . . . . . . . . . . . . . . . . . . . . Machines Disabled . | . . . . . . . . . . . . . . . . . . . . . . . Actions | -11 -10 -10 -10 -9 -8 -7 -7 -7 -6 -6 -6 -6 -6 -6 -6 -5 -5 -5 -5 -5 -5 -4 --------- Run | Scr Mat Min Exi Min Mat Fac Low Zio Pro Fac Was Fac Low Low Dat Pro Fac Ext Cet Arc Hub Fac Total 17827 | 129 848 417 304 138 2053 833 395 1165 656 1376 194 403 658 563 89 427 2039 1415 866 488 1043 1328 Wait 1751 | 6 15 7 . 5 244 87 7 48 39 29 19 17 17 64 . 19 175 204 65 366 154 164 Move 13566 | 98 689 370 300 110 1377 617 363 1083 576 1020 151 349 612 444 87 336 1666 1047 721 109 715 726 Hop . | . . . . . . . . . . . . . . . . . . . . . . . Pick Up 233 | 3 16 6 2 3 50 12 2 10 3 25 . 4 3 3 . 7 18 12 5 . 12 37 Fast Attach 178 | 7 4 . . . 28 2 1 3 1 28 . . . . 1 2 18 11 10 2 4 56 Attach 111 | . 3 3 . 1 21 8 2 5 1 19 . . 1 1 . 2 7 5 . . 3 29 Detach 19 | . . . . . 1 . . 1 . 5 . . . . . 2 4 2 . . . 4 Swap 235 | . 5 . . 2 35 12 2 2 6 29 5 7 8 12 . 12 11 17 15 . 21 34 Drop 284 | 1 6 3 2 3 64 9 1 13 3 40 . 3 3 3 1 10 30 20 20 2 9 38 Fire 1221 | 14 110 28 . 12 228 70 14 . 27 177 19 7 8 23 . 24 30 37 29 9 124 231 Melee 159 | . . . . . 1 . . . . 4 . 15 6 13 . 6 80 26 1 . . 7 Ram . | . . . . . . . . . . . . . . . . . . . . . . . Kick . | . . . . . . . . . . . . . . . . . . . . . . . Crush 4 | . . . . . 1 . . . . . . . . . . . . . . . 1 2 Escape Stasis 29 | . . . . . . 16 . . . . . . . . . . . 13 . . . . Rewire 23 | . . . . 2 . . 3 . . . . . . . . 7 . 11 . . . . Trap 13 | . . . . . 3 . . . . . . . . . . . . 10 . . . . Miscellaneous 1 | . . . . . . . . . . . . 1 . . . . . . . . . . Route ------- -11/Scrapyard -10/Materials (discovered 4 exits: [*Mat x2] / *Min x2) -10/Mines (discovered 2 exits: [*Mat] / *Exi) -10/Exiles -9/Mines -8/Materials (discovered 3 exits: *Fac x3) -7/Factory -7/Lower Caves -7/Zion -6/Proximity Caves -6/Factory (discovered 2 exits: *Fac x2) -6/Waste -6/Factory (discovered 2 exits: *Low x2) -6/Lower Caves -6/Lower Caves (discovered 2 exits: Fac / *Dat) -6/Data Miner -5/Proximity Caves -5/Factory (discovered 6 exits: *Fac x3 / *Upp x2 / *Ext) -5/Extension (discovered 3 exits: *Fac x2 / *Cet) -5/Cetus (discovered 3 exits: *Fac x2 / *Arc) -5/Archives (discovered 2 exits: *Fac / *Hub) -5/Hub_04(d) (discovered 4 exits: *Fac x4) -4/Factory (discovered 5 exits: *Res x4 / [Upp]) History --------- Turn | Location | Event 22 | -11/Scrapyard | Discovered new exit (range 15) 211 | -11/Scrapyard | Entered Materials 273 | -10/Materials | Central database locked down 303 | -10/Materials | Build established: Mutant 350 | -10/Materials | Discovered new exit (range 15) 596 | -10/Materials | Discovered new exit (range 16) 804 | -10/Materials | Discovered new exit (range 16) 931 | -10/Materials | Discovered new exit (range 16) 1345 | -10/Materials | Core integrity fell below 50% 1658 | -10/Materials | Entered Mines 1692 | -10/Mines | Learned Materials stockpile data 1817 | -10/Mines | Deemed a non-threat by the Exiles lab entrance 2018 | -10/Mines | Discovered new exit (range 7) 2035 | -10/Mines | Central database locked down 2349 | -10/Mines | Discovered new exit (range 5) 2356 | -10/Mines | Entered Exiles 2409 | -10/Exiles | Met 8R-AWN 2438 | -10/Exiles | Met EX-HEX 2506 | -10/Exiles | Met EX-DEC 2524 | -10/Exiles | Learned location of Zion (-7) 2787 | -10/Exiles | Met EX-BIN 2877 | -10/Exiles | Discovered new exit (range 14) 2898 | -10/Exiles | Entered Mines 2905 | -9/Mines | Core integrity fell below 20% 2940 | -9/Mines | Found a hidden stash of uninstalled traps 3052 | -9/Mines | Assisted by bots powering up and referring to "LRC-V3" 3140 | -9/Mines | Discovered new exit (range 9) 3156 | -9/Mines | Entered Materials 3156 | -8/Materials | Evolved 4 slots: Propulsion x1, Utility x3 3370 | -8/Materials | Garrison activated, responded to threat 4321 | -8/Materials | Core integrity fell below 50% 4388 | -8/Materials | Build established: Scavenger-Mutant 4439 | -8/Materials | Lost 3 parts (1n1u1w) 4547 | -8/Materials | Repaired Lgt. Treads 5018 | -8/Materials | Repaired Reflective Plating 5046 | -8/Materials | Repaired Lgt. Treads 5098 | -8/Materials | Repaired Imp. EM Shotgun 5136 | -8/Materials | Discovered new exit (range 7) 5572 | -8/Materials | Discovered new exit (range 4) 5774 | -8/Materials | Discovered new exit (range 14) 5800 | -8/Materials | Build established: Hauler-Mutant 5956 | -8/Materials | First assault squad dispatched 6553 | -8/Materials | Entered Factory 6553 | -7/Factory | Evolved 2 slots: Utility x2 6645 | -7/Factory | Discovered new exit (range 13) 6837 | -7/Factory | Repaired Adv. Treads 7014 | -7/Factory | Identified exit to Lower Caves 7353 | -7/Factory | First assault squad dispatched 7379 | -7/Factory | Garrison activated, responded to threat 7520 | -7/Factory | Lost 3 parts (1p2n) 7608 | -7/Factory | Entered Lower Caves 7664 | -7/Lower Caves | Attracted the attention of an 0b10 outpost 8089 | -7/Lower Caves | A Derelict revealed a hidden shortcut to a safe place 8094 | -7/Lower Caves | Entered Zion 8094 | -7/Zion | Accompanied by 1 ally 8153 | -7/Zion | Discovered new exit (range 16) 8157 | -7/Zion | Given the Hacking Drone Bay 8163 | -7/Zion | Found Prototype Device 8444 | -7/Zion | Identified Hacking Drone Bay 8796 | -7/Zion | Learned location of 1 exit from Lower Caves 9055 | -7/Zion | Imprinted 9058 | -7/Zion | Declared Zion's savior 9221 | -7/Zion | Found Prototype Processor 9221 | -7/Zion | Identified Spectral Analyzer 9235 | -7/Zion | Found Prototype Hackware 9239 | -7/Zion | Found Prototype Processor 9242 | -7/Zion | Found Prototype Processor 9246 | -7/Zion | Found Prototype Processor 9472 | -7/Zion | Entered Proximity Caves 9472 | -6/Proximity Caves | Accompanied by 5 allies 9490 | -6/Proximity Caves | Attracted the attention of an 0b10 checkpoint 9704 | -6/Proximity Caves | Learned 12 Factory zone layouts 9861 | -6/Proximity Caves | Spotted B-75 Beast 9979 | -6/Proximity Caves | Discovered new exit (range 6) 10292 | -6/Proximity Caves | Entered Factory 10292 | -6/Factory | Accompanied by 4 allies 10292 | -6/Factory | Evolved 2 slots: Utility x2 10373 | -6/Factory | Garrison activated, responded to threat 10515 | -6/Factory | Destroyed 7 combat bots 10662 | -6/Factory | Discovered new exit (range 15) 10707 | -6/Factory | Identified exit to Factory 10787 | -6/Factory | Garrison activated, responded to threat 10861 | -6/Factory | Identified Exp. Targeting Computer 10863 | -6/Factory | Identified Exp. Armor Integrity Analyzer (x2) 10877 | -6/Factory | Lost 4 parts (1n2u1w) 10992 | -6/Factory | First assault squad dispatched 11069 | -6/Factory | Build established: Scavenger-Mutant 11144 | -6/Factory | Lost 4 parts (2n2u) 11227 | -6/Factory | Lost 4 parts (1p1n1u1w) 11236 | -6/Factory | Destroyed 11 combat bots 11351 | -6/Factory | Zion Hover Resupply teleported in 11562 | -6/Factory | Zion Light squad teleported in 11568 | -6/Factory | Found Launcher Loader 11569 | -6/Factory | Discovered exit to Factory (range 19) 11601 | -6/Factory | Terminal network hard line cut 11783 | -6/Factory | Build established: Mutant 11978 | -6/Factory | Manually triggered Chute Trap 11978 | -6/Factory | Sucked down chute 11978 | -6/Factory | Entered Waste 11993 | -6/Waste | EMP discharged 11993 | -6/Waste | System corruption reached 10% 12002 | -6/Waste | Spotted C-40 Crusher 12007 | -6/Waste | Spotted C-40 Crusher 12008 | -6/Waste | Spotted C-40 Crusher 12010 | -6/Waste | Spotted C-40 Crusher 12011 | -6/Waste | Spotted C-40 Crusher 12018 | -6/Waste | Spotted C-40 Crusher 12093 | -6/Waste | EMP discharged 12103 | -6/Waste | Destroyed C-40 Crusher 12114 | -6/Waste | Destroyed C-40 Crusher 12149 | -6/Waste | Discovered new exit (range 11) 12157 | -6/Waste | Entered Factory 12361 | -6/Factory | Retrieved Zion intel report: Component Schematics 12362 | -6/Factory | Zion Infowar Resupply teleported in 12412 | -6/Factory | Identified exit to Lower Caves 12473 | -6/Factory | Entered Lower Caves 12474 | -6/Lower Caves | Identified exit to Lower Caves 12542 | -6/Lower Caves | Learned Factory trap positions 12684 | -6/Lower Caves | Spotted B-75 Beast 12915 | -6/Lower Caves | Encountered a Warlord checkpoint 12940 | -6/Lower Caves | Entered another Lower Caves area 12962 | -6/Lower Caves | Discovered exit to Factory (range 18) 12983 | -6/Lower Caves | Learned Factory emergency access door positions 13064 | -6/Lower Caves | Identified exit to Data Miner 13221 | -6/Lower Caves | Spotted B-75 Beast 13416 | -6/Lower Caves | Entered Data Miner 13417 | -6/Data Miner | Discovered new exit (range 6) 13429 | -6/Data Miner | Met Data Miner 13440 | -6/Data Miner | Learned location of Section 7 (-2) 13440 | -6/Data Miner | Acquired the access code to Warlord's prototype stash 13450 | -6/Data Miner | Received God Mode back door access code from Data Miner 13475 | -6/Data Miner | Entered Proximity Caves 13572 | -5/Proximity Caves | Escorted by Enhanced Grunt 13686 | -5/Proximity Caves | Learned Factory stockpile data 13732 | -5/Proximity Caves | Discovered exit to Factory (range 15) 13751 | -5/Proximity Caves | Attracted the attention of an 0b10 outpost 13761 | -5/Proximity Caves | Core integrity fell below 50% 13789 | -5/Proximity Caves | Destroyed 13 combat bots 13831 | -5/Proximity Caves | Entered Factory 13831 | -5/Factory | Accompanied by 3 allies 13831 | -5/Factory | Evolved 2 slots: Power x1, Propulsion x1 13832 | -5/Factory | Loaded intel: 90 trap records 14131 | -5/Factory | First assault squad dispatched 14148 | -5/Factory | Incoming assault squad redirected 14276 | -5/Factory | Retrieved Zion intel report: Prototype Schematics 14356 | -5/Factory | Retrieved Zion intel report: Component Schematics 14357 | -5/Factory | Zion Hacking Resupply teleported in 14360 | -5/Factory | Identified Exp. System Shield 14381 | -5/Factory | Zion Light squad teleported in 14693 | -5/Factory | Discovered new exit (range 20) 14731 | -5/Factory | Local fabrication network quarantined 14773 | -5/Factory | Fabricated Exp. Terrain Scanner? 14783 | -5/Factory | Identified exit to Factory 14834 | -5/Factory | Discovered new exit (range 51) 14866 | -5/Factory | Identified exit to Upper Caves 14935 | -5/Factory | Zion hero teleported in (12-ASH) 14945 | -5/Factory | Discovered exit to Upper Caves (range 11) 15002 | -5/Factory | Discovered exit to Factory (range 20) 15059 | -5/Factory | Incoming assault squad redirected 15066 | -5/Factory | Lost 3 parts (2u1w) 15140 | -5/Factory | Discovered exit to Factory (range 24) 15152 | -5/Factory | Retrieved Zion intel report: Unaware Analyses 15153 | -5/Factory | Zion Hacker squad teleported in 15222 | -5/Factory | Discovered new exit (range 13) 15225 | -5/Factory | Zion Kinetic Resupply teleported in 15229 | -5/Factory | Identified exit to Extension 15235 | -5/Factory | Entered Extension 15235 | -5/Extension | Accompanied by 2 allies 15306 | -5/Extension | Rescued a captive Derelict 15311 | -5/Extension | Retrieved Zion intel report: Prototype Schematics 15311 | -5/Extension | Rescued a captive Derelict 15312 | -5/Extension | Zion Fire squad teleported in 15337 | -5/Extension | Zion Fire squad teleported in 15337 | -5/Extension | Rescued a captive Derelict 15338 | -5/Extension | Rescued a captive Derelict 15513 | -5/Extension | Spotted B-75 Beast 15532 | -5/Extension | Spotted B-75 Beast 15535 | -5/Extension | Destroyed B-75 Beast 15549 | -5/Extension | Destroyed B-75 Beast 15557 | -5/Extension | Discovered exit to Factory (range 5) 15588 | -5/Extension | Destroyed 7 combat bots 15603 | -5/Extension | Retrieved Zion intel report: Component Schematics 15635 | -5/Extension | Rescued a captive Derelict 15636 | -5/Extension | Rescued a captive Derelict 15643 | -5/Extension | Zion Trap Resupply teleported in 15835 | -5/Extension | First assault squad dispatched 16024 | -5/Extension | Build established: Scavenger-Mutant 16028 | -5/Extension | Retrieved Zion intel report: Prototype Stockpiles 16037 | -5/Extension | Retrieved Zion intel report: Prototype Schematics 16038 | -5/Extension | Rescued a captive Derelict 16039 | -5/Extension | Rescued a captive Derelict 16064 | -5/Extension | Retrieved Zion intel report: Component Stockpiles 16074 | -5/Extension | Retrieved Zion intel report: Unaware Schematics 16163 | -5/Extension | Rescued a captive Derelict 16164 | -5/Extension | Retrieved Zion intel report: Unaware Analyses 16164 | -5/Extension | Rescued a captive Derelict 16165 | -5/Extension | Retrieved Zion intel report: Unaware Schematics 16165 | -5/Extension | Rescued a captive Derelict 16169 | -5/Extension | Retrieved Zion intel report: Unaware Schematics 16169 | -5/Extension | Rescued a captive Derelict 16175 | -5/Extension | Rescued a captive Derelict 16190 | -5/Extension | Rescued A7 16192 | -5/Extension | Retrieved Zion intel report: Guard Positions 16206 | -5/Extension | Discovered exit to Factory (range 10) 16207 | -5/Extension | Discovered new exit (range 6) 16231 | -5/Extension | Identified exit to Cetus 16235 | -5/Extension | Disrupted transfer network 16236 | -5/Extension | P-70 Sage assimilated allied 4H-RA3(l) 16236 | -5/Extension | Entered Cetus 16236 | -5/Cetus | Accompanied by 5 allies (A7) 16241 | -5/Cetus | Acquired a Cetus Manufacturing Module code from A7 16249 | -5/Cetus | Spotted Cetus Guard 16249 | -5/Cetus | Spotted Cetus Guard 16253 | -5/Cetus | Destroyed Cetus Guard 16254 | -5/Cetus | Spotted Cetus Guard 16255 | -5/Cetus | Destroyed Cetus Guard 16255 | -5/Cetus | Spotted Cetus Guard 16258 | -5/Cetus | Destroyed Cetus Guard 16260 | -5/Cetus | Destroyed Cetus Guard 16346 | -5/Cetus | Started Cetus Manufacturing Module 16364 | -5/Cetus | Escorted A7 to Cetus Mainframe 16371 | -5/Cetus | Manufactured an Enhanced Grunt 16396 | -5/Cetus | Manufactured an Enhanced Grunt 16399 | -5/Cetus | Build established: Mutant 16406 | -5/Cetus | Discovered new exit (range 15) 16417 | -5/Cetus | Spotted Cetus Guard 16417 | -5/Cetus | Spotted Cetus Guard 16421 | -5/Cetus | Manufactured an Enhanced Grunt 16421 | -5/Cetus | Spotted Cetus Guard 16422 | -5/Cetus | Destroyed Cetus Guard 16422 | -5/Cetus | Spotted Cetus Guard 16424 | -5/Cetus | Destroyed Cetus Guard 16425 | -5/Cetus | Destroyed Cetus Guard 16428 | -5/Cetus | Destroyed Cetus Guard 16432 | -5/Cetus | Discovered exit to Factory (range 15) 16435 | -5/Cetus | Scared off Revision 17 16446 | -5/Cetus | Manufactured an Enhanced Grunt 16471 | -5/Cetus | Manufactured an Enhanced Grunt 16513 | -5/Cetus | Discovered exit to Factory (range 15) 16572 | -5/Cetus | Retrieved Zion intel report: Prototype Schematics 16602 | -5/Cetus | Identified exit to Archives 16838 | -5/Cetus | Retrieved Zion intel report: Unaware Schematics 16892 | -5/Cetus | Retrieved Zion intel report: Depthwide Sectors/0 16922 | -5/Cetus | Build established: Scavenger-Mutant 17087 | -5/Cetus | Entered Archives 17087 | -5/Archives | Accompanied by 6 allies (A7) 17092 | -5/Archives | Received a hacking code to weaken MAIN.C 17145 | -5/Archives | Discovered exit to Factory (range 13) 17868 | -5/Archives | Unable to access archive contents 17884 | -5/Archives | Discovered new exit (range 13) 17909 | -5/Archives | Identified exit to Hub_04(d) 17923 | -5/Archives | Entered Hub_04(d) 17923 | -5/Hub_04(d) | Accompanied by 5 allies 17958 | -5/Hub_04(d) | Discovered exit to Factory (range 17) 18056 | -5/Hub_04(d) | Spotted B-75 Beast 18060 | -5/Hub_04(d) | Allies destroyed B-75 Beast 18096 | -5/Hub_04(d) | Retrieved Zion intel report: Trap Installations 18112 | -5/Hub_04(d) | Discovered exit to Factory (range 25) 18146 | -5/Hub_04(d) | Retrieved Zion intel report: Active Terminals 18377 | -5/Hub_04(d) | Retrieved Zion intel report: Component Stockpiles 18518 | -5/Hub_04(d) | Retrieved Zion intel report: Component Schematics 18624 | -5/Hub_04(d) | Core integrity fell below 50% 18823 | -5/Hub_04(d) | First assault squad dispatched 18848 | -5/Hub_04(d) | Incoming assault squad redirected 18956 | -5/Hub_04(d) | Lost 4 parts (1p2u1w) 18965 | -5/Hub_04(d) | Destroyed 7 combat bots 19108 | -5/Hub_04(d) | Retrieved Zion intel report: Component Schematics 19236 | -5/Hub_04(d) | Destroyed 7 combat bots 19392 | -5/Hub_04(d) | Found Prototype Device 19392 | -5/Hub_04(d) | Identified Exp. Thermal Shield 19407 | -5/Hub_04(d) | Found Exp. Thermal Shield 19435 | -5/Hub_04(d) | Terminal network hard line cut 19618 | -5/Hub_04(d) | Network Hub disabled 19623 | -5/Hub_04(d) | Entered Factory 19623 | -4/Factory | Evolved 2 slots: Utility x1, Weapon x1 19856 | -4/Factory | Identified exit to Research 19897 | -4/Factory | Zion Hacking Resupply teleported in 19925 | -4/Factory | Build established: Scavenger-Tank 19953 | -4/Factory | Discovered new exit (range 27) 19958 | -4/Factory | Incoming investigation squad redirected 20043 | -4/Factory | Lost 5 parts (1p1n3u) 20123 | -4/Factory | First assault squad dispatched 20306 | -4/Factory | Build established: Scavenger-Gunner 20328 | -4/Factory | Zion Infowar Resupply teleported in 20399 | -4/Factory | System corruption reached 10% 20400 | -4/Factory | Incoming assault squad redirected 20444 | -4/Factory | Lost 5 parts (1n1u3w) 20559 | -4/Factory | Core integrity fell below 50% 20563 | -4/Factory | Released all parts (5) 20584 | -4/Factory | Zion Light squad teleported in 20592 | -4/Factory | Lost 14 parts (2p2n5u5w) 20652 | -4/Factory | Incoming assault squad redirected 20741 | -4/Factory | Incoming assault squad redirected 20869 | -4/Factory | Spotted B-86 Titan 20894 | -4/Factory | Incoming assault squad redirected 20904 | -4/Factory | Zion Infowar Resupply teleported in 21011 | -4/Factory | Terminal network hard line cut 21150 | -4/Factory | Incoming assault squad redirected 21300 | -4/Factory | Fabricated Tesla Bomb Launcher? 21320 | -4/Factory | Lost 3 parts (2u1w) 21349 | -4/Factory | Spotted B-86 Titan 21395 | -4/Factory | Core integrity fell below 20% 21440 | -4/Factory | Destroyed 12 combat bots 21450 | -4/Factory | High security lockdown imminent 21514 | -4/Factory | Destroyed 13 combat bots 21530 | -4/Factory | High security lockdown engaged 21683 | -4/Factory | Self-destructed Last Messages --------------- 21674_ Destroyed Unknown Reactor. 21676_ C-30 ARC bursts open, deploying its payload. 21676_ G-73 Enforcer unfolds itself. 21676_ G-67 Veteran unfolds itself. 21676_ E-15 Imp unfolds itself. 21676_ Zio. Biocell destroyed. 21676_ Cesium-ion Thruster fried. 21676_ E-15 Imp destroyed. 21677_ Tesla Bomb Launcher destroyed. 21677_ C-30 ARC bursts open, deploying its payload. 21677_ G-73 Enforcer unfolds itself. 21677_ G-67 Veteran unfolds itself. 21677_ E-15 Imp unfolds itself. 21679_ E-15 Imp destroyed. 21680_ Prc. Matter Filter destroyed. 21680_ Acquired Prototype Energy Cannon. 21680_ Identified Lrn. Phase Cannon. 21680_ Malfunction: Imp. Heavy Treads damaged (-78). 21682_ Acquired 69 matter. 21682_ Energy Mantle destroyed. Map ----- +----------------------------------------------------+ | ?????????????????????????????????????????????????? | | ?????????????????????????????????????????????????? | | ?????????????????????????????????????????????????? | | ?????????????????????????????????????????????????? | | ?????????????????????????????????????????????????? | | ?????????????????????????????????????????????????? | | ?????????????????????????????????????????????????? | | ?????????????????????????????????????????????????? | | ?????????????????????????????????????????????????? | | ?????????????????????????????????????????????????? | | ?????????????????????????????????????????????????? | | ?????????????????????????????????????????????????? | | ?????????????????????##########?#??#########?????? | | ????????????####?????# # * ????? | | ????????????# ?????# ; ????? | | ????????????# ?????# ; ????? | | ????????????# """"## "" "" ; ????? | | ????????????# """"## "" "" ; ????? | | ????????????# """"## "" """ ; ???? | | ????????????# """"## "" """ ; ???? | | ??????####??# """"## " """ ???? | | ???# ## # """"## ??????? | | ??### ### ## "" """????? | | ? ## ?? | | ## #? ?? ? | | !%! # #####@ ###/"### [ """# | | = !%!%=[= [%= | | = % /*==!!% *==% | | ? "% % = * !%| [ %== [ | | ?? % = =%! [ %= "" | | ?? # = %% % F | | ?? ## ### = ! | | ? ## !# * " | | ?? # [ | | # # "" *=% | | ############## / ! %*%=% | | ???????####### # %=%* = =!! | | ??????#?###### # /%!/g * | | ????#?#?##?### """ ####ggggg######## ###; #### | | ???????##?##?# """ # %[[ g ####### #### # | | ??#?#?##?###?# """ # g #######"#### # "" | | ?????##?###### # ### # + "" | | ????##########! # " % ### # # "" | | ?#???######### # ### # # | | ???################# " ;## # # | | ????################ ;##"""" # #### | | ?????#########?###?# ;##"""" # #### | | ???########?#########""";;;"""?#"""" # ^ | | ??######?################ # ####"""" + ^ | | ?#?###?###########?######## #### #^^^ | +----------------------------------------------------+ Best States ------------- Heat Dissipation 100 Energy Generation 45 Energy Capacity 1920 Matter Stores 300 Matter Capacity 300 Sight Range 23 Robot Scan Range 16 Terrain Scan Range 30 Terrain Scan Density 210 Jamming Range 16 Cloak Strength 3 Additional Mass Support 9 Base Temperature (-) 100 Armor Coverage 1350 Resistance: TH 30 Core Shielding 20 Weapon Shielding 66 Point Defense Rating 80 Weapon Cycling 15 Evasion (%) 55 Targeting Accuracy 8 Melee Accuracy 8 Target Analysis 8 Core Analysis 8 Armor Integrity Analysis 90 Recoil Reduction 4 Matter Filtering 50 Energy Filtering 30 Particle Charging 20 Offensive Hacking 20 Defensive Hacking 28 Item Schematics ----------------- Gatling Laser | -6/Factory | Z-intel Matter Filter | -6/Factory | Z-intel Imp. Shield Generator | -6/Factory | Z-intel Thermal Shield | -6/Factory | Z-intel Imp. Power Shielding | -6/Factory | Z-intel Lrn. Tractor Beam | -6/Factory | Z-intel Focal Shield | -6/Factory | Z-intel Imp. Salvage Targeting Computer | -6/Factory | Z-intel Hvy. Missile Launcher | -6/Factory | Z-intel Powered Hammer | -6/Factory | Z-intel Force Rifle | -6/Factory | Z-intel Hardlight Generator | -6/Factory | Z-intel Hacking Suite | -6/Factory | Z-intel Recoil Stabilizer | -6/Factory | Z-intel Remote Datajack | -6/Factory | Z-intel Airjet | -6/Factory | Z-intel Plasma Sword | -6/Data Miner | Free Mni. Smartbomb Launcher | -6/Data Miner | Free Cloaking Device | -6/Data Miner | Free Exp. Transmission Jammer | -6/Data Miner | Free Tactical Coordination Suite | -6/Data Miner | Free Exp. Targeting Computer | -6/Data Miner | Free Exp. Terrain Scanner | -6/Data Miner | Free Lgt. Regenerative Plating | -6/Data Miner | Free Combat Drone Bay | -6/Data Miner | Free Thunder Hammer | -5/Factory | Z-intel Prc. Shock Rifle | -5/Factory | Z-intel Gravity Neutralizing Apparatus | -5/Factory | Z-intel Lgt. Neutrino Core | -5/Factory | Z-intel Exp. Heat Sink | -5/Factory | Z-intel Antimatter Cannon | -5/Factory | Z-intel Imp. Energy Well | -5/Factory | Z-intel Com. Ion Cannon | -5/Factory | Z-intel Launcher Loader | -5/Factory | Z-intel Nuclear Pulse Array | -5/Factory | Z-intel Imp. Integration Mediator | -5/Factory | Z-intel Arm. Leg | -5/Factory | Z-intel Imp. Core Shielding | -5/Factory | Z-intel Maul | -5/Factory | Z-intel Gravmag Array | -5/Factory | Z-intel Force Field | -5/Factory | Z-intel Smartbomb Launcher | -5/Factory | Z-intel Weight Redist. System | -5/Factory | Z-intel Plasma Rifle | -5/Factory | Z-intel Component Analysis Suite | -5/Factory | Z-intel Plasma Cutter | -5/Factory | Z-intel Lrg. Storage Unit | -5/Factory | Z-intel Imp. Actuator Array | -5/Factory | Z-intel Exp. Signal Interpreter | -5/Extension | Z-intel Tri-rail Accelerator | -5/Extension | Z-intel Exp. Weapon Shielding | -5/Extension | Z-intel Imp. Matter Compressor | -5/Extension | Z-intel Thermal Defense Suite | -5/Extension | Z-intel Cld. Aerolev Unit | -5/Extension | Z-intel Hvy. Gatling Laser | -5/Extension | Z-intel F-cell Engine | -5/Extension | Z-intel Cld. Plasma Rifle | -5/Extension | Z-intel Prc. Rocket Launcher | -5/Extension | Z-intel Med. Treads | -5/Extension | Z-intel Imp. Component Analysis Suite | -5/Extension | Z-intel Field Propulsion Drive | -5/Extension | Z-intel Remote Shield | -5/Extension | Z-intel Lrn. Terrain Scanner | -5/Extension | Z-intel Adv. Sensor Array | -5/Extension | Z-intel Wave Gun | -5/Extension | Z-intel Hvy. Machine Gun | -5/Extension | Z-intel Adv. Cooling System | -5/Extension | Z-intel Imp. Propulsion Shielding | -5/Extension | Z-intel Magnetic Acceleration Cannon | -5/Extension | Z-intel Recalibrator | -5/Extension | Z-intel System Shield | -5/Extension | Z-intel Prc. Matter Filter | -5/Extension | Z-intel Cld. Plasma Cannon | -5/Extension | Z-intel Cld. Particle Cannon | -5/Extension | Z-intel Tesla Bomb Launcher | -5/Extension | Z-intel Cld. Airjet | -5/Extension | Z-intel Cold Fusion Reactor | -5/Extension | Z-intel Cld. Fission Core | -5/Extension | Z-intel Fusion Reactor | -5/Extension | Z-intel Cld. Gravmag System | -5/Extension | Z-intel Imp. Heavy Machine Gun | -5/Cetus | Z-intel Exp. Optical Array | -5/Cetus | Z-intel Enh. Armored Leg | -5/Cetus | Z-intel Enh. Force Rifle | -5/Cetus | Z-intel Imp. Thermal Defense Suite | -5/Cetus | Z-intel Hvy. Proton Cannon | -5/Cetus | Z-intel Enh. Fission Core | -5/Cetus | Z-intel Enh. Nuclear Core | -5/Cetus | Z-intel Kinetic Spear | -5/Cetus | Z-intel Adv. Reclamation Unit | -5/Hub_04(d) | Z-intel Hpw. Shock Rifle | -5/Hub_04(d) | Z-intel Hrd. Light Armor Plating | -5/Hub_04(d) | Z-intel Gyrokinetic Inverter | -5/Hub_04(d) | Z-intel Neutron Cannon | -5/Hub_04(d) | Z-intel Thermal Converter | -5/Hub_04(d) | Z-intel Overload Amplifier | -5/Hub_04(d) | Z-intel Gravmag System | -5/Hub_04(d) | Z-intel Imp. Kinecellerator | -5/Hub_04(d) | Z-intel Adv. ECM Suite | -5/Hub_04(d) | Z-intel Hvy. Phase Cannon | -5/Hub_04(d) | Z-intel Lgt. Fission Core | -5/Hub_04(d) | Z-intel Imp. Particle Charger | -5/Hub_04(d) | Z-intel Imp. Plasma Cutter | -5/Hub_04(d) | Z-intel Hyp. Coil Gun | -5/Hub_04(d) | Z-intel Hvy. Pick | -5/Hub_04(d) | Z-intel Imp. Datajack | -5/Hub_04(d) | Z-intel Imp. Shock Absorption System | -5/Hub_04(d) | Z-intel Flak Gun | -5/Hub_04(d) | Z-intel Adv. System Shield | -5/Hub_04(d) | Z-intel Imp. Deuterium Engine | -5/Hub_04(d) | Z-intel Adv. Targeting Computer | -5/Hub_04(d) | Z-intel Lgt. Angular Momentum Engine | -5/Hub_04(d) | Z-intel Adv. Terrain Scan Processor | -5/Hub_04(d) | Z-intel Imp. Targeting Computer | -5/Hub_04(d) | Z-intel Adv. Salvage Targeting Computer | -5/Hub_04(d) | Z-intel Mic. Fission Core | -5/Hub_04(d) | Z-intel Imp. Weapon Shielding | -5/Hub_04(d) | Z-intel Arm. Medium Treads | -5/Hub_04(d) | Z-intel Robot Schematics ------------------ I-36 Angel | -6/Data Miner | Free P-70 Sage | -6/Data Miner | Free H-66 Slayer | -6/Data Miner | Free X-72 Disruptor | -6/Data Miner | Free G-50 Soldier | -6/Data Miner | Free S-27 Virus | -6/Data Miner | Free B-60 Warrior | -5/Extension | Z-intel A-15 Conveyor | -5/Extension | Z-intel B-48 Gladiator | -5/Extension | Z-intel R-06 Scavenger | -5/Extension | Z-intel L-41 Fighter | -5/Extension | Z-intel T-07 Excavator | -5/Extension | Z-intel Y-54 Guardian | -5/Extension | Z-intel A-02 Transporter | -5/Extension | Z-intel K-01 Serf | -5/Extension | Z-intel M-22 Extractor | -5/Extension | Z-intel R-10 Processor | -5/Extension | Z-intel Y-64 Sentinel | -5/Cetus | Z-intel E-15 Imp | -5/Cetus | Z-intel I-47 Archangel | -5/Cetus | Z-intel Fabricated ------------ Exp. Terrain Scanner | x1 | -5/Factory Tesla Bomb Launcher | x1 | -4/Factory Alien Tech Used ----------------- None Achievements -------------- None Challenges ------------ None Game ------ Seed InertialHoverPod Manual? 0 Play Time 04:02:51 Cumulative 524.0 hours Start 2020.09.26 @ 02:14:47 End 2020.09.26 @ 21:20:50 Sessions 3 Manual Loads 0 Difficulty Rogue Special Mode None Game No. 333 Rogue 333 Adventurer 0 Explorer 0 Win Type - Total 6 Types 4/0/1/0/1/0/0/0/0 Lore% 88 Gallery% 88 Achievement% 69 Wizard Run 0 Options --------- ASCII 0 Keyboard 0 Movement Mouse Keybinds 1 Fullscreen 2 Font 24/Smallcaps Map View 68x50 Tactical HUD 1 Map Filters NONE Filters NONE Steam 1 RUN: 3212f6bd-3eef-468d-b06a-2921a433e0ad